bitfinex-derivatives/quotes_BTCF0:USTF0_20250827
["timestamp","ask_amount","ask_price","bid_price","bid_amount"]
[1756302582442,0.0894853,111740.0,111730.0,0.8229534]
[1756302582747,0.17127437,111750.0,111740.0,0.09557]
[1756302583042,0.22816437,111750.0,111740.0,0.45637]
[1756302583247,0.2101753,111740.0,111730.0,0.43388]
[1756302583446,0.67203854,111740.0,111730.0,0.41811]
[1756302583942,0.10747377,111750.0,111740.0,0.1896554]
[1756302584150,0.01799207,111750.0,111740.0,1.6410654]
[1756302584450,0.10746937,111750.0,111740.0,1.6410654]
[1756302585245,0.13733937,111750.0,111740.0,0.48346]
[1756302585446,0.13733937,111750.0,111740.0,0.5729453]
[1756302585447,0.10846937,111750.0,111740.0,0.5729453]
[1756302585649,0.69102261,111750.0,111740.0,0.45637]
[1756302585846,0.2101753,111740.0,111730.0,0.3608]
[1756302586149,0.67203854,111740.0,111730.0,0.3608]
[1756302586350,0.67203854,111740.0,111730.0,0.39562]
[1756302587049,0.10747267,111750.0,111740.0,0.1277453]
[1756302587346,0.13634267,111750.0,111740.0,0.5729453]
[1756302587746,0.01799207,111750.0,111740.0,0.8229453]
[1756302588449,0.01799207,111750.0,111740.0,1.28480854]
[1756302588950,0.01799207,111750.0,111740.0,0.8229453]
[1756302589350,0.01805829,111760.0,111750.0,0.1550174]
[1756302589549,0.01805829,111760.0,111750.0,1.6328774]
[1756302590147,0.01805829,111760.0,111750.0,1.8827974]
[1756302590546,0.0894454,111790.0,111780.0,0.1663134]
[1756302590853,0.0894454,111790.0,111780.0,0.9261734]
[1756302591360,0.1183154,111790.0,111780.0,0.9261734]
[1756302591555,0.1183154,111790.0,111780.0,0.83672]
[1756302591854,0.1532454,111790.0,111780.0,0.83672]
[1756302592054,0.2101354,111790.0,111780.0,0.83672]
[1756302592551,0.1746654,111790.0,111780.0,0.83672]
[1756302592747,0.92199864,111790.0,111780.0,0.7216]
[1756302592952,0.2101434,111780.0,111770.0,0.3608]
[1756302593155,0.2101514,111770.0,111760.0,0.3608]
[1756302593454,0.0894614,111770.0,111760.0,0.5653894]
[1756302593854,0.1752214,111770.0,111760.0,0.44883]
[1756302594055,0.2101514,111770.0,111760.0,0.41057]
[1756302594249,0.2101514,111770.0,111760.0,0.38808]
[1756302594457,0.2101514,111770.0,111760.0,0.42634]
[1756302594949,0.1183314,111770.0,111760.0,0.5653894]
[1756302595852,0.1213314,111770.0,111760.0,0.5653894]
[1756302596562,0.0904614,111770.0,111760.0,0.5653894]
[1756302596856,0.1193314,111770.0,111760.0,0.5653894]
[1756302597154,0.1193314,111770.0,111760.0,0.47592]
[1756302597354,0.1542614,111770.0,111760.0,1.54232]
[1756302597757,0.1542614,111770.0,111760.0,1.6317892]
[1756302598563,0.1193314,111770.0,111760.0,1.6317892]
[1756302598753,0.001,111770.0,111760.0,1.6317892]
[1756302598951,0.02706,111800.0,111790.0,0.1387852]
[1756302599152,0.1164972,111800.0,111790.0,0.9258652]
[1756302599358,0.1164972,111800.0,111790.0,1.9917052]
[1756302599359,0.1857072,111800.0,111790.0,1.9917052]
[1756302599957,0.1500972,111800.0,111790.0,0.9258652]
[1756302600155,0.2072072,111800.0,111790.0,0.80815]
[1756302600353,0.72293147,111800.0,111790.0,0.76995]
[1756302600550,0.72293147,111800.0,111790.0,0.80815]
[1756302601255,0.72293147,111800.0,111790.0,0.83642]
[1756302601451,0.2072072,111800.0,111790.0,0.76995]
[1756302601657,0.72293147,111800.0,111790.0,0.7216]
[1756302601858,0.2072072,111800.0,111790.0,0.83642]
[1756302602455,0.72293147,111800.0,111790.0,0.74888]
[1756302603255,0.65372147,111800.0,111790.0,0.9258652]
[1756302603462,0.1164972,111800.0,111790.0,0.9258652]
[1756302603657,0.1174972,111800.0,111790.0,0.9258652]
[1756302604057,0.1746072,111800.0,111790.0,0.78087]
[1756302604262,0.72393147,111800.0,111790.0,0.74267]
[1756302604553,0.97393147,111800.0,111790.0,0.3608]
[1756302604758,0.2072152,111790.0,111780.0,0.3608]
[1756302604960,0.72293947,111790.0,111780.0,0.3608]
[1756302605160,0.1716132,111780.0,111770.0,0.40915]
[1756302605358,0.72294747,111780.0,111770.0,0.44735]
[1756302606758,0.72294747,111780.0,111770.0,0.38808]
[1756302606960,0.72294747,111780.0,111760.0,0.41876521]
[1756302606961,0.0894612,111770.0,111760.0,0.41876521]
[1756302607154,0.72295547,111770.0,111760.0,0.44604521]
[1756302607360,0.72295547,111770.0,111760.0,0.53551441]
[1756302607559,0.0894532,111780.0,111760.0,0.53551441]
[1756302607560,0.0894586,111780.0,111770.0,0.0894585]
[1756302607863,0.1165186,111780.0,111770.0,0.47562]
[1756302608054,0.1175186,111780.0,111770.0,0.47562]
[1756302608255,0.001,111780.0,111770.0,0.5650812]
[1756302608460,0.001,111780.0,111770.0,1.33080547]
[1756302608762,0.0904532,111780.0,111770.0,1.33080547]
[1756302608959,0.1175132,111780.0,111770.0,0.72562]
[1756302609161,0.1511132,111780.0,111770.0,0.5650812]
[1756302609361,0.1511132,111780.0,111770.0,1.6289612]
[1756302610350,0.72394747,111780.0,111770.0,0.42007]
[1756302610554,0.72394747,111780.0,111770.0,0.44735]
[1756302610763,0.1736312,111770.0,111760.0,0.44604521]
[1756302611064,0.72295547,111770.0,111760.0,1.59911441]
[1756302611271,0.1175179,111780.0,111770.0,0.2042812]
[1756302611466,0.0904579,111780.0,111770.0,0.5650812]
[1756302611860,0.0894504,111790.0,111780.0,0.2042729]
[1756302612161,0.1164969,111800.0,111790.0,0.2042649]
[1756302612359,0.1715969,111800.0,111790.0,0.5367949]
[1756302612556,0.1164969,111800.0,111790.0,0.5650649]
[1756302613064,0.0894369,111800.0,111790.0,0.5650649]
[1756302613659,0.1164969,111800.0,111790.0,0.5650649]
[1756302614254,0.1500969,111800.0,111790.0,0.5650649]
[1756302614459,0.1164969,111800.0,111790.0,0.5650649]
[1756302614764,0.1715969,111800.0,111790.0,0.5650649]
[1756302615058,0.72293117,111800.0,111790.0,0.44735]
[1756302615460,0.68732117,111800.0,111790.0,0.5650649]
[1756302615665,0.0904369,111800.0,111790.0,0.5650649]
[1756302616061,0.001,111800.0,111790.0,0.5650649]
[1756302616257,0.001,111800.0,111790.0,1.08078917]
[1756302616459,0.10751413,111810.0,111800.0,0.0894369]
[1756302616662,0.01808453,111810.0,111800.0,1.6263769]
[1756302616863,0.23468361,111830.0,111820.0,0.2032409]
[1756302617063,0.75040788,111830.0,111820.0,0.80715]
[1756302617266,0.23468361,111830.0,111820.0,0.83542]
[1756302617459,0.75040788,111830.0,111820.0,0.80715]
[1756302619169,0.23668361,111830.0,111820.0,0.9248409]
[1756302619468,0.22731966,111830.0,111820.0,0.9248409]
[1756302619766,0.19170966,111830.0,111820.0,0.9248409]
[1756302619958,0.02906,111830.0,111820.0,0.9248409]
[1756302620156,0.02906,111830.0,111820.0,1.1748409]
[1756302620157,0.002,111830.0,111820.0,1.1748409]
[1756302620356,0.002,111830.0,111820.0,2.2362409]
[1756302620566,0.116457,111850.0,111840.0,0.1104749]
[1756302620756,0.116457,111850.0,111840.0,0.9228249]
[1756302620957,0.207167,111850.0,111840.0,0.9228249]
[1756302621266,0.207167,111850.0,111840.0,0.80515]
[1756302621267,0.72289127,111850.0,111840.0,0.80515]
[1756302621466,0.72289127,111850.0,111840.0,0.83342]
[1756302621467,0.137957,111850.0,111840.0,0.83342]
[1756302621769,0.137957,111850.0,111840.0,0.922825]
[1756302621962,0.211167,111850.0,111840.0,0.80515]
[1756302622162,0.72689127,111850.0,111840.0,0.80515]
[1756302622859,0.139457,111850.0,111840.0,0.83542]
[1756302623062,0.139457,111850.0,111840.0,0.9248249]
[1756302623261,0.74589127,111850.0,111840.0,0.80715]
[1756302623458,0.99589127,111850.0,111840.0,0.002]
[1756302623671,1.87241554,111850.0,111840.0,0.002]
[1756302623970,2.93293554,111850.0,111840.0,0.002]
[1756302624270,2.41721127,111850.0,111840.0,0.002]
[1756302625476,2.05641127,111850.0,111840.0,0.002]
[1756302625773,0.74589127,111850.0,111840.0,0.44635]
[1756302626177,0.230167,111850.0,111840.0,0.5640249]
[1756302626381,0.74589127,111850.0,111840.0,0.5640249]
[1756302626680,0.74589127,111850.0,111840.0,0.47462]
[1756302626976,0.74589127,111850.0,111840.0,0.8140249]
[1756302626977,0.023,111850.0,111840.0,0.8140249]
[1756302627184,0.023,111850.0,111840.0,1.32974917]
[1756302627376,0.023,111850.0,111840.0,0.8140249]
[1756302627575,0.13474913,111870.0,111860.0,0.1104589]
[1756302627772,0.13474913,111870.0,111860.0,0.8999789]
[1756302628471,0.13474913,111870.0,111860.0,0.80515]
[1756302628674,0.7411834,111870.0,111860.0,0.80515]
[1756302629084,0.7581834,111870.0,111860.0,0.80615]
[1756302629579,0.7581834,111870.0,111860.0,0.7226]
[1756302629783,0.7581834,111870.0,111860.0,0.74888]
[1756302629982,0.7581834,111870.0,111860.0,0.78425]
[1756302630285,0.7591834,111870.0,111860.0,0.80669]
[1756302630887,0.7591834,111870.0,111860.0,0.7226]
[1756302631386,0.7591834,111870.0,111860.0,0.80669]
[1756302631784,0.7591834,111870.0,111860.0,0.74888]
[1756302632378,0.7591834,111870.0,111860.0,0.7226]
[1756302632579,0.7591834,111870.0,111860.0,0.3618]
[1756302632882,0.7591834,111870.0,111860.0,0.44589]
[1756302633684,0.15274913,111870.0,111860.0,0.896079]
[1756302633883,0.15274913,111870.0,111860.0,0.901519]
[1756302634186,0.7604134,111870.0,111860.0,0.896079]
[1756302634382,0.7604134,111870.0,111860.0,0.44589]
[1756302634584,0.7604134,111870.0,111860.0,0.3618]
[1756302634784,0.007,111870.0,111860.0,1.1505189]
[1756302634989,0.1512209,111900.0,111890.0,0.117735]
[1756302635185,0.66694517,111900.0,111890.0,0.478535]
[1756302635385,0.72688517,111900.0,111890.0,0.478535]
[1756302635582,0.06663,111900.0,111890.0,0.478535]
[1756302635790,0.02986,111900.0,111890.0,0.483975]
[1756302636188,0.48176544,111910.0,111900.0,0.172167]
[1756302636491,0.57111744,111910.0,111900.0,0.562637]
[1756302636691,0.089352,111910.0,111900.0,0.562637]
[1756302636886,0.60507627,111910.0,111900.0,0.562637]
[1756302637388,0.3608,111920.0,111900.0,0.562637]
[1756302637698,0.66500527,111920.0,111910.0,0.3928]
[1756302638189,0.72686527,111920.0,111910.0,0.3928]
[1756302638389,0.72686527,111920.0,111910.0,0.510519]
[1756302638687,0.72686527,111920.0,111910.0,0.47328]
[1756302638883,0.211141,111920.0,111910.0,0.44361]
[1756302639084,0.73637626,111920.0,111910.0,0.44361]
[1756302639686,0.73637626,111920.0,111910.0,0.3608]
[1756302639886,0.126127,111900.0,111890.0,0.44361]
[1756302640189,0.72688127,111900.0,111890.0,0.47328]
[1756302640384,0.72688127,111900.0,111880.0,0.5202524]
[1756302640385,0.211173,111880.0,111870.0,0.44128]
[1756302640586,0.72689727,111880.0,111870.0,0.11248]
[1756302640885,0.72689727,111880.0,111870.0,0.08281]
[1756302641184,0.72689727,111880.0,111870.0,0.05444]
[1756302641391,0.2111809,111870.0,111860.0,0.3608]
[1756302641589,0.72690517,111870.0,111860.0,0.3928]
[1756302641789,0.72690517,111870.0,111860.0,0.47328]
[1756302641991,0.02986,111880.0,111870.0,0.201861]
[1756302642187,0.02986,111880.0,111870.0,0.562661]
[1756302642188,0.088373,111880.0,111870.0,0.562661]
[1756302642494,0.0893709,111890.0,111880.0,0.201853]
[1756302642688,0.0893709,111890.0,111880.0,0.562653]
[1756302643095,0.1192309,111890.0,111880.0,0.562653]
[1756302643291,0.70371617,111900.0,111890.0,0.201845]
[1756302643487,0.0893619,111900.0,111890.0,0.562645]
[1756302643886,0.2111546,111910.0,111900.0,0.172167]
[1756302644088,0.02986,111910.0,111900.0,0.562637]
[1756302644289,0.2380892,111930.0,111920.0,0.149711]
[1756302644592,0.75381347,111930.0,111920.0,0.482141]
[1756302644890,0.089341,111920.0,111910.0,0.3608]
[1756302645197,0.211149,111910.0,111900.0,0.42117]
[1756302645389,0.211149,111910.0,111900.0,0.510527]
[1756302645584,0.211149,111910.0,111900.0,0.562637]
[1756302645788,0.174379,111910.0,111900.0,0.562637]
[1756302646287,0.211149,111910.0,111900.0,0.562637]
[1756302646596,0.174379,111910.0,111900.0,0.562637]
[1756302646799,0.211149,111910.0,111900.0,0.562637]
[1756302647794,0.119209,111910.0,111900.0,0.562637]
[1756302647996,0.211149,111910.0,111900.0,0.562637]
[1756302648693,0.20588556,111930.0,111920.0,0.201821]
[1756302648896,0.20587956,111930.0,111920.0,0.562621]
[1756302649093,0.04777656,111930.0,111920.0,0.923421]
[1756302649297,0.01791656,111930.0,111920.0,1.173421]
[1756302649598,0.10724956,111930.0,111920.0,1.173421]
[1756302650096,0.10724956,111930.0,111920.0,2.226341]
[1756302650296,0.089333,111930.0,111920.0,2.226341]
[1756302650698,0.1191903,111940.0,111930.0,0.201813]
[1756302651004,0.2111303,111940.0,111930.0,0.47328]
[1756302651496,0.91033554,111950.0,111940.0,0.1117609]
[1756302651497,0.1191801,111950.0,111940.0,0.1117609]
[1756302651699,0.1191801,111950.0,111940.0,0.5626009]
[1756302651897,0.18011843,111960.0,111950.0,0.1401271]
[1756302652097,0.02417633,111960.0,111950.0,0.5625971]
[1756302652601,0.14334543,111960.0,111950.0,0.5625971]
[1756302653003,0.14334543,111960.0,111950.0,1.6145971]
[1756302653797,0.14334543,111960.0,111950.0,0.47328]
[1756302654202,0.17534543,111960.0,111950.0,0.47328]
[1756302655098,0.17534543,111960.0,111950.0,1.52428]
[1756302655606,0.14334543,111960.0,111950.0,1.52428]
[1756302656005,0.14334543,111960.0,111950.0,1.6135971]
[1756302656210,0.015,111960.0,111950.0,1.6135971]
[1756302656504,0.1043091,111960.0,111950.0,1.6135971]
[1756302657009,0.1043091,111960.0,111950.0,0.5625971]
[1756302657309,0.1043091,111960.0,111950.0,1.6129171]
[1756302657507,0.1341691,111960.0,111950.0,0.47328]
[1756302657709,0.93632694,111960.0,111950.0,0.3608]
[1756302657908,0.2111171,111950.0,111940.0,0.42117]
[1756302658208,0.67133494,111950.0,111940.0,0.47328]
[1756302658410,0.4651091,111960.0,111950.0,0.11248]
[1756302658411,0.1043091,111960.0,111950.0,0.11248]
[1756302658605,0.1341691,111960.0,111950.0,0.5625971]
[1756302659000,0.1341691,111960.0,111950.0,0.47328]
[1756302659204,0.2249491,111960.0,111950.0,1.52292]
[1756302659713,0.1903091,111960.0,111950.0,0.5606771]
[1756302659910,0.1341691,111960.0,111950.0,0.5606771]
[1756302660110,0.2246991,111960.0,111950.0,0.44361]
[1756302660308,0.0893171,111950.0,111940.0,1.4102]
[1756302660509,0.1859971,111950.0,111940.0,1.49897]
[1756302660717,0.91913494,111950.0,111940.0,0.3839]
[1756302660902,0.0893251,111940.0,111930.0,0.44492]
[1756302661108,0.208933,111930.0,111920.0,0.3928]
[1756302661612,0.66815084,111930.0,111920.0,0.44492]
[1756302661808,0.66815084,111930.0,111920.0,0.032]
[1756302662019,0.089349,111910.0,111900.0,0.44147057]
[1756302662320,0.208957,111900.0,111890.0,0.08412]
[1756302662508,0.208965,111890.0,111880.0,0.42182]
[1756302662706,0.208973,111880.0,111870.0,0.032]
[1756302662919,0.67822642,111880.0,111870.0,0.032]
[1756302663110,0.089373,111880.0,111870.0,0.4725]
[1756302663309,0.02907,111880.0,111870.0,0.561881]
[1756302663506,0.1184356,111890.0,111880.0,0.201073]
[1756302663818,0.089373,111880.0,111870.0,0.3608]
[1756302664009,0.186053,111880.0,111870.0,0.5618809]
[1756302664318,0.61162594,111890.0,111880.0,0.089373]
[1756302664507,0.1530709,111900.0,111880.0,0.561873]
[1756302664710,0.1860409,111900.0,111890.0,0.06085]
[1756302665011,0.2089609,111900.0,111890.0,0.06085]
[1756302665217,0.118435,111890.0,111880.0,0.4405]
[1756302665521,0.02907,111890.0,111880.0,0.4405]
[1756302665708,0.02907,111890.0,111880.0,0.4725]
[1756302665709,0.118435,111890.0,111880.0,0.4725]
[1756302665909,0.208965,111890.0,111880.0,0.4725]
[1756302666110,0.208973,111880.0,111870.0,0.38965]
[1756302666319,0.66919084,111880.0,111870.0,0.3608]
[1756302666715,0.66919084,111880.0,111870.0,0.534131]
[1756302667024,0.118443,111880.0,111870.0,0.561881]
[1756302667217,0.02907,111880.0,111870.0,0.561881]
[1756302667414,0.118443,111880.0,111870.0,0.561881]
[1756302667823,0.06371,111890.0,111880.0,0.172223]
[1756302668019,0.03297,111900.0,111890.0,0.089365]
[1756302668321,0.118435,111890.0,111880.0,1.49636]
[1756302668522,0.151405,111890.0,111880.0,1.49636]
[1756302669218,0.118435,111890.0,111880.0,1.49636]
[1756302669721,0.118435,111890.0,111880.0,1.585733]
[1756302670020,0.208965,111890.0,111880.0,0.42165]
[1756302670218,0.61174038,111900.0,111890.0,0.1117]
[1756302670522,0.1860408,111900.0,111890.0,0.4725]
[1756302671023,0.2089608,111900.0,111890.0,0.44475]
[1756302671217,0.66930038,111900.0,111890.0,0.3608]
[1756302671424,0.66930038,111900.0,111890.0,0.44475]
[1756302671723,0.66930038,111900.0,111890.0,0.3928]
[1756302672314,0.66930038,111900.0,111890.0,0.3608]
[1756302672713,0.66930038,111900.0,111880.0,0.4494]
[1756302672714,0.208965,111890.0,111880.0,0.3928]
[1756302672927,0.63633458,111890.0,111880.0,0.4725]
[1756302673115,0.208965,111890.0,111880.0,0.4725]
[1756302673421,0.118435,111890.0,111880.0,0.4725]
[1756302673624,0.118435,111890.0,111880.0,0.561873]
[1756302674016,0.089365,111890.0,111880.0,0.561873]
[1756302674722,0.118435,111890.0,111880.0,0.4725]
[1756302675123,0.089365,111890.0,111880.0,0.561873]
[1756302676117,0.089365,111890.0,111880.0,0.4725]
[1756302676318,0.208965,111890.0,111880.0,0.4725]
[1756302676522,0.208973,111880.0,111870.0,0.3608]
[1756302676821,0.208973,111880.0,111870.0,0.3928]
[1756302677022,0.66931258,111880.0,111870.0,0.3928]
[1756302677221,0.66931258,111880.0,111870.0,0.5618809]
[1756302677222,0.141363,111880.0,111870.0,0.5618809]
[1756302677418,0.089373,111880.0,111870.0,0.5618809]
[1756302677822,0.089373,111880.0,111870.0,1.6071209]
[1756302678019,0.089373,111880.0,111870.0,1.607121]
[1756302678223,0.1184402,111890.0,111880.0,0.172223]
[1756302678424,0.0893702,111890.0,111880.0,0.561873]
[1756302679224,0.1184402,111890.0,111880.0,0.561873]
[1756302679818,0.0893702,111890.0,111880.0,0.811873]
[1756302680829,0.1184402,111890.0,111880.0,0.811873]
[1756302681019,0.1860502,111890.0,111880.0,0.4725]
[1756302681221,0.2089702,111890.0,111880.0,0.4735]
[1756302682029,0.2089702,111890.0,111880.0,0.44575]
[1756302682328,0.02907,111870.0,111860.0,0.3608]
[1756302682522,0.176019,111860.0,111850.0,1.6104269]
[1756302682723,0.54972058,111870.0,111850.0,1.6104269]
[1756302682724,0.0893866,111870.0,111860.0,0.2010866]
[1756302682925,0.0893866,111870.0,111860.0,0.5618866]
[1756302683830,0.0893866,111870.0,111860.0,1.6043266]
[1756302684434,0.0893866,111870.0,111860.0,1.6053266]
[1756302684840,0.1184479,111880.0,111870.0,0.201081]
[1756302685029,0.1184479,111880.0,111870.0,0.561881]
[1756302686135,0.2089779,111880.0,111870.0,0.4725]
[1756302686435,0.66931748,111880.0,111870.0,0.4159]
[1756302687035,0.91931748,111880.0,111870.0,0.3608]
[1756302687939,0.2089779,111880.0,111870.0,0.4725]
[1756302688136,0.2089779,111880.0,111870.0,0.44475]
[1756302688634,0.66931748,111880.0,111870.0,0.44475]
[1756302689234,0.66931748,111880.0,111870.0,0.3928]
[1756302689430,0.7240842,111880.0,111870.0,0.3928]
[1756302689831,0.7240842,111880.0,111870.0,0.44176]
[1756302690628,0.7240842,111880.0,111870.0,0.3928]
[1756302691137,0.7240842,111880.0,111870.0,0.3608]
[1756302691336,0.089381,111870.0,111860.0,0.47065]
[1756302691537,0.6639473,111870.0,111860.0,0.47065]
[1756302691734,0.7228773,111870.0,111860.0,0.47065]
[1756302692434,0.6322173,111870.0,111860.0,0.5600389]
[1756302692631,0.117111,111870.0,111860.0,0.5600389]
[1756302692835,0.148841,111870.0,111860.0,0.5600389]
[1756302693343,0.148841,111870.0,111860.0,0.47065]
[1756302693734,0.117111,111870.0,111860.0,0.47065]
[1756302693931,0.089381,111870.0,111860.0,0.920839]
[1756302694148,0.207771,111870.0,111860.0,0.83145]
[1756302694340,0.207771,111870.0,111860.0,0.74284]
[1756302694341,0.7228773,111870.0,111860.0,0.74284]
[1756302694641,0.207779,111860.0,111850.0,0.00589]
[1756302694941,0.7228853,111860.0,111850.0,0.00589]
[1756302695740,0.74134108,111860.0,111850.0,0.00589]
[1756302695942,0.74134108,111860.0,111850.0,0.00689]
[1756302697245,0.74134108,111860.0,111850.0,0.03862]
[1756302697433,0.75044581,111860.0,111850.0,0.03862]
[1756302697636,0.75044581,111860.0,111850.0,0.00689]
[1756302699045,1.00044581,111860.0,111850.0,0.00689]
[1756302699541,0.20360951,111860.0,111850.0,0.47754]
[1756302699744,0.19450478,111860.0,111850.0,0.816937]
[1756302700044,0.10784478,111860.0,111850.0,0.72754]
[1756302700238,0.13557478,111860.0,111850.0,0.72754]
[1756302700439,0.22623478,111860.0,111850.0,0.72754]
[1756302700835,0.74134108,111860.0,111850.0,0.39942]
[1756302701041,0.74134108,111860.0,111850.0,0.36769]
[1756302701241,0.74134108,111860.0,111850.0,0.00689]
[1756302701439,2.02798108,111860.0,111850.0,0.00689]
[1756302701645,2.38878108,111860.0,111850.0,1e-07]
[1756302701841,0.1483349,111840.0,111830.0,0.3608]
[1756302702146,0.7229012,111840.0,111830.0,0.3608]
[1756302702341,0.1400449,111840.0,111830.0,0.5600648]
[1756302702546,0.1171349,111840.0,111830.0,0.5600648]
[1756302703245,0.2077949,111840.0,111830.0,0.5630648]
[1756302703645,0.1171349,111840.0,111830.0,0.5630648]
[1756302703839,0.0894049,111840.0,111830.0,0.5630648]
[1756302704242,0.1488649,111840.0,111830.0,0.5630648]
[1756302704542,0.7229012,111840.0,111830.0,0.3638]
[1756302704740,2.3692612,111840.0,111830.0,0.003]
[1756302705440,0.08237,111810.0,111800.0,0.40848372]
[1756302705640,0.2078208,111810.0,111800.0,0.44021372]
[1756302705949,0.2078208,111810.0,111800.0,0.01996372]
[1756302706150,0.7229271,111810.0,111800.0,0.01996372]
[1756302706447,0.7229271,111810.0,111800.0,0.10065372]
[1756302706636,0.0894308,111810.0,111800.0,0.58005252]
[1756302706836,0.1171585,111820.0,111810.0,0.1992784]
[1756302707038,0.14888,111830.0,111820.0,0.1992728]
[1756302707241,0.11715,111830.0,111820.0,0.5600728]
[1756302707439,0.7229163,111830.0,111820.0,0.3608]
[1756302707639,0.0894308,111810.0,111800.0,0.56081142]
[1756302707834,0.2078208,111810.0,111800.0,0.58205142]
[1756302708036,0.7229271,111810.0,111800.0,0.49261372]
[1756302708343,0.2078208,111810.0,111800.0,0.58205252]
[1756302708541,0.2078208,111810.0,111800.0,0.55289252]
[1756302708844,0.1181581,111820.0,111810.0,0.0894308]
[1756302709147,0.0904228,111820.0,111810.0,1.0751871]
[1756302709453,0.1181528,111820.0,111810.0,0.47065]
[1756302709641,0.2078128,111820.0,111810.0,0.47065]
[1756302710042,0.2078128,111820.0,111810.0,0.05297]
[1756302710043,0.7229191,111820.0,111810.0,0.05297]
[1756302710341,0.7239191,111820.0,111810.0,0.03173]
[1756302710544,0.1531808,111810.0,111800.0,0.58005252]
[1756302710839,0.1708008,111810.0,111800.0,0.58005252]
[1756302711046,0.0904265,111820.0,111810.0,0.1463108]
[1756302711351,0.0904265,111820.0,111810.0,0.5600808]
[1756302712143,0.001,111820.0,111810.0,1.5936408]
[1756302712345,0.001,111820.0,111810.0,2.3587471]
[1756302712738,0.001,111820.0,111810.0,1.3251871]
[1756302712943,0.0904228,111820.0,111810.0,2.3583471]
[1756302713143,0.001,111820.0,111810.0,2.1083471]
[1756302713349,0.001,111820.0,111810.0,1.5932408]
[1756302713350,0.0894228,111820.0,111810.0,1.5932408]
[1756302713851,0.0894181,111830.0,111820.0,0.1992681]
[1756302714052,0.0894181,111830.0,111820.0,0.5600681]
[1756302714438,0.2078081,111830.0,111820.0,0.47065]
[1756302714644,0.1171481,111830.0,111820.0,0.47065]
[1756302714851,0.1171481,111830.0,111820.0,0.5600728]
[1756302715142,0.0894181,111830.0,111820.0,0.5600728]
[1756302716151,0.1171481,111830.0,111820.0,1.5925528]
[1756302716350,0.1181481,111830.0,111820.0,1.5925528]
[1756302716847,0.1181481,111830.0,111820.0,0.5600728]
[1756302717046,0.2088081,111830.0,111820.0,0.5600728]
[1756302717245,0.2088081,111830.0,111820.0,1.5919928]
[1756302717652,0.2088081,111830.0,111820.0,0.47065]
[1756302718148,0.1727881,111830.0,111820.0,0.47065]
[1756302718551,0.0904181,111830.0,111820.0,0.5600728]
[1756302718745,0.1181481,111830.0,111820.0,0.5600728]
[1756302719447,0.2125281,111830.0,111820.0,0.47065]
[1756302719648,0.7276344,111830.0,111820.0,0.44149]
[1756302719853,0.2125281,111830.0,111820.0,0.44149]
[1756302720039,0.1125428,111820.0,111810.0,1.44221]
[1756302720243,0.7267091,111820.0,111810.0,0.3608]
[1756302720647,0.9767091,111820.0,111810.0,0.3608]
[1756302720852,0.4616028,111820.0,111810.0,0.3608]
[1756302721048,0.1838108,111810.0,111800.0,0.40925372]
[1756302721350,0.1838108,111810.0,111790.0,0.3608]
[1756302721351,0.6921971,111810.0,111790.0,0.3608]
[1756302721541,0.1885148,111780.0,111770.0,0.3928]
[1756302721746,0.2116348,111780.0,111770.0,0.4697]
[1756302721945,0.2116348,111780.0,111770.0,0.5591628]
[1756302722239,0.2116348,111780.0,111770.0,0.4697]
[1756302722645,0.2116348,111780.0,111770.0,0.5591628]
[1756302723048,0.1748948,111780.0,111770.0,0.5591628]
[1756302723252,0.1539909,111790.0,111780.0,0.1983548]
[1756302723459,0.1172509,111790.0,111780.0,0.5591548]
[1756302723754,0.1172437,111800.0,111790.0,0.1089]
[1756302723942,0.1172437,111800.0,111790.0,0.4697]
[1756302724246,0.0894437,111800.0,111790.0,0.5591468]
[1756302724841,0.1172437,111800.0,111790.0,0.5591468]
[1756302725046,0.0894437,111800.0,111790.0,0.5591468]
[1756302725541,0.1125637,111800.0,111790.0,0.5041268]
[1756302725748,0.1125637,111800.0,111790.0,0.3608]
[1756302725749,0.72673,111800.0,111790.0,0.3608]
[1756302726352,0.72773,111800.0,111790.0,0.3608]
[1756302726545,0.72873,111800.0,111790.0,0.3928]
[1756302726744,0.72873,111800.0,111790.0,0.44095]
[1756302726951,0.2126237,111800.0,111790.0,0.44095]
[1756302727146,0.2136237,111800.0,111790.0,0.44095]
[1756302727560,0.1172477,111790.0,111780.0,0.46944]
[1756302727752,0.726734,111790.0,111780.0,0.46944]
[1756302728054,0.689994,111790.0,111780.0,0.5588957]
[1756302728256,0.1172477,111790.0,111780.0,0.5588957]
[1756302729558,0.2126277,111790.0,111780.0,0.46944]
[1756302729754,0.1758877,111790.0,111780.0,0.46944]
[1756302730063,0.2126277,111790.0,111780.0,0.44095]
[1756302730261,0.1758877,111790.0,111780.0,0.5588957]
[1756302730562,0.2126277,111790.0,111780.0,0.5588957]
[1756302730757,0.1182477,111790.0,111780.0,0.5588957]
[1756302731060,0.0894557,111780.0,111770.0,0.41468]
[1756302731250,0.0894637,111770.0,111760.0,0.441573]
[1756302731559,0.72675,111770.0,111760.0,0.020283]
[1756302732655,0.72775,111770.0,111760.0,0.020283]
[1756302732861,0.97775,111770.0,111760.0,0.020283]
[1756302736561,1.33855,111770.0,111760.0,0.020283]
[1756302737263,0.0894877,111740.0,111730.0,0.44756]
[1756302737454,0.726774,111740.0,111730.0,0.3608]
[1756302737658,0.2116757,111730.0,111720.0,0.44996]
[1756302737859,0.726782,111730.0,111720.0,0.44996]
[1756302738155,0.2116757,111730.0,111720.0,0.44996]
[1756302738364,0.726782,111730.0,111720.0,0.44996]
[1756302738757,0.726782,111730.0,111720.0,0.47845]
[1756302738963,0.1749357,111730.0,111720.0,0.5679537]
[1756302739160,0.2116917,111710.0,111700.0,0.49868794]
[1756302739353,0.0895117,111710.0,111700.0,1.52472794]
[1756302739552,0.0875117,111710.0,111700.0,1.52472794]
[1756302739966,0.1153117,111710.0,111700.0,1.52472794]
[1756302740263,0.1153117,111710.0,111700.0,1.52452794]
[1756302740464,0.1498317,111710.0,111700.0,1.52652794]
[1756302740666,0.1729517,111710.0,111700.0,1.52636794]
[1756302740862,0.2096917,111710.0,111700.0,0.49868794]
[1756302741058,0.1865717,111710.0,111700.0,1.52428794]
[1756302741258,0.724798,111710.0,111700.0,0.38103794]
[1756302741459,0.974798,111710.0,111700.0,0.02023794]
[1756302741654,1.335598,111710.0,111700.0,0.02023794]
[1756302741862,0.1749677,111690.0,111680.0,0.03528]